bitfinex-derivatives/quotes_SOLF0:USTF0_20220106
["timestamp","ask_amount","ask_price","bid_price","bid_amount"]
[1641504198891,90.68009,151.84,151.77,4.64712337]
[1641504198892,127.91188709,151.84,151.77,4.64712337]
[1641504199391,131.91188709,151.84,151.77,4.64712337]
[1641504199890,131.91188709,151.84,151.73,20.82363191]
[1641504199891,11.7169271,151.83,151.73,20.82363191]
[1641504200694,11.7169271,151.83,151.75,27.66479]
[1641504200894,11.7169271,151.83,151.77,4.64727622]
[1641504201597,11.7169271,151.83,151.75,27.66479]
[1641504202599,11.7169271,151.83,151.77,4.64715379]
[1641504203297,11.7169271,151.83,151.75,27.66479]
[1641504203498,11.7169271,151.83,151.76,4.0]
[1641504203698,11.7169271,151.83,151.75,27.66479]
[1641504204298,11.7169271,151.83,151.78,4.64690617]
[1641504205201,11.7169271,151.83,151.75,27.66479]
[1641504205902,11.7169271,151.83,151.78,4.64724679]
[1641504206604,11.7169271,151.83,151.77,4.6472857]
[1641504207605,11.7169271,151.83,151.78,4.64727198]
[1641504208408,11.7169271,151.83,151.75,41.61643753]
[1641504208706,11.7169271,151.83,151.75,45.61643753]
[1641504209106,11.7169271,151.83,151.75,41.61643753]
[1641504209306,11.7169271,151.83,151.78,4.64709219]
[1641504209707,11.7169271,151.83,151.78,10.65609219]
[1641504210107,4.6469906,151.79,151.78,6.009]
[1641504210907,4.6469906,151.79,151.75,41.61643753]
[1641504211109,13.94106269,151.82,151.78,4.6470209]
[1641504211909,11.7169271,151.83,151.75,41.61643753]
[1641504212508,11.7169271,151.83,151.75,45.61643753]
[1641504212710,13.94080044,151.82,151.79,4.64693348]
[1641504213511,13.94044777,151.83,151.76,20.82412758]
[1641504214313,13.94044777,151.83,151.76,13.95164753]
[1641504214515,13.94044777,151.82,151.78,4.64694631]
[1641504215315,11.71528781,151.83,151.79,4.64683117]
[1641504215517,11.71528781,151.83,151.79,8.64683117]
[1641504216016,13.94018971,151.83,151.79,4.0]
[1641504216715,90.68009,151.84,151.79,4.0]
[1641504216920,104.61917392,151.84,151.81,4.64636131]
[1641504217217,41.60387392,151.84,151.81,4.64636131]
[1641504217417,13.93908392,151.84,151.81,8.64636131]
[1641504217618,13.93908392,151.84,151.81,4.64636131]
[1641504217919,13.93750322,151.85,151.78,4.0]
[1641504218819,13.93750322,151.87,151.83,4.64562471]
[1641504219820,13.93750322,151.87,151.82,27.66479]
[1641504220625,13.93750322,151.87,151.83,4.64557578]
[1641504221725,48.9419747,151.9,151.82,27.66479]
[1641504222022,7.165,151.87,151.82,27.66479]
[1641504222423,21.10199269,151.87,151.83,4.64566423]
[1641504223424,21.10199269,151.87,151.8,27.66479]
[1641504223626,4.0,151.86,151.79,13.95164753]
[1641504223924,71.6581,151.86,151.79,13.95164753]
[1641504224325,13.93699269,151.84,151.8,4.64628026]
[1641504225029,41.60178269,151.84,151.8,4.64628026]
[1641504225429,41.60178269,151.84,151.77,13.95164753]
[1641504225632,41.60178269,151.84,151.79,4.64662169]
[1641504225633,13.93699269,151.83,151.79,4.64662169]
[1641504225830,18.34199269,151.83,151.79,4.64662169]
[1641504226831,13.93699269,151.83,151.79,4.64662169]
[1641504227032,13.93699269,151.83,151.76,20.82405616]
[1641504227232,19.16499269,151.83,151.76,20.82405616]
[1641504228032,4.0,151.82,151.8,4.64651052]
[1641504228234,4.0,151.81,151.76,20.82405616]
[1641504228534,4.0,151.79,151.76,5.616e-05]
[1641504228733,4.0,151.79,151.69,9.66]
[1641504228734,9.946,151.79,151.68,55.95772458]
[1641504228933,27.66479,151.74,151.68,55.95772458]
[1641504229133,32.40579,151.74,151.68,55.95772458]
[1641504229736,32.40579,151.74,151.7,11.21622098]
[1641504230638,32.40579,151.74,151.66,37.70479]
[1641504230839,32.40579,151.74,151.66,27.66479]
[1641504231236,24.96811576,151.74,151.66,27.66479]
[1641504231736,24.96811576,151.74,151.66,38.87910561]
[1641504233439,20.22711576,151.74,151.66,42.87910561]
[1641504233643,20.22711576,151.74,151.66,31.66479]
[1641504234039,20.22711576,151.74,151.66,27.66479]
[1641504236341,27.66479,151.76,151.68,4.0]
[1641504236741,27.66479,151.76,151.66,58.75779]
[1641504236942,65.827,151.75,151.7,27.66479]
[1641504237142,65.827,151.75,151.7,32.94879]
[1641504238042,65.827,151.75,151.71,1.41362812]
[1641504239443,27.66479,151.76,151.71,1.41362812]
[1641504240344,62.2568,151.79,151.71,1.41362812]
[1641504240746,62.2568,151.79,151.71,12.62794373]
[1641504240945,62.2568,151.79,151.74,27.66479]
[1641504241147,62.2568,151.79,151.74,34.81579]
[1641504241646,62.2568,151.79,151.75,1.41362812]
[1641504244148,3.23422355,151.78,151.75,1.41362812]
[1641504244947,62.2568,151.79,151.71,1.41362812]
[1641504245148,62.2568,151.79,151.74,27.66479]
[1641504245348,90.49619,151.83,151.74,32.50879]
[1641504245547,66.986,151.82,151.74,36.50879]
[1641504245949,66.986,151.82,151.75,1.41362812]
[1641504246951,3.23346225,151.81,151.75,1.41362812]
[1641504248754,3.23346225,151.81,151.75,8.28064082]
[1641504254255,4.0,151.78,151.75,1.41362812]
[1641504254655,4.0,151.78,151.75,2.812e-05]
[1641504255154,4.0,151.79,151.7,27.66479]
[1641504255354,4.0,151.79,151.71,6.86715901]
[1641504256055,27.66479,151.8,151.71,6.86715901]
[1641504256255,4.0,151.78,151.71,6.86715901]
[1641504256956,4.0,151.78,151.7,27.66479]
[1641504257461,4.0,151.77,151.7,27.66479]
[1641504257658,8.903,151.77,151.7,27.66479]
[1641504257958,4.0,151.76,151.7,27.66479]
[1641504258358,4.0,151.76,151.69,106.63013761]
[1641504258565,8.903,151.77,151.69,106.63013761]
[1641504258758,8.903,151.77,151.62,6.58479571]
[1641504258759,4.0,151.71,151.62,6.58479571]
[1641504258958,9.847,151.71,151.62,6.58479571]
[1641504259860,5.847,151.71,151.65,13.94896904]
[1641504260062,4.0,151.68,151.59,18.0799115]
[1641504260260,9.847,151.71,151.59,18.0799115]
[1641504260465,9.847,151.71,151.59,22.0799115]
[1641504260661,9.847,151.71,151.59,18.0799115]
[1641504261062,4.0,151.7,151.57,4.0]
[1641504261260,67.818,151.7,151.6,4.0]
[1641504261461,67.818,151.7,151.58,24.0]
[1641504261662,95.48279,151.7,151.61,27.66479]
[1641504264263,95.48279,151.7,151.61,34.58479]
[1641504265066,95.48279,151.7,151.62,4.0]
[1641504265269,66.539,151.72,151.61,34.58479]
[1641504265467,66.539,151.72,151.63,4.0]
[1641504265668,66.539,151.72,151.66,27.66479]
[1641504265968,66.539,151.72,151.66,34.61279]
[1641504273381,66.539,151.72,151.67,6.86465961]
[1641504276282,66.539,151.72,151.67,13.68065961]
[1641504277784,66.539,151.72,151.67,6.86465961]
[1641504282890,95.87159,151.75,151.67,6.86465961]
[1641504283390,68.2068,151.75,151.67,6.86465961]
[1641504283890,68.2068,151.75,151.67,18.0737775]
[1641504284292,64.9335,151.77,151.67,18.0737775]
[1641504284492,64.9335,151.77,151.69,27.66479]
[1641504285593,64.9335,151.77,151.7,6.86465961]
[1641504285996,68.9335,151.77,151.7,6.86465961]
[1641504286495,27.66479,151.75,151.7,6.86465961]
[1641504287494,27.66479,151.75,151.69,27.66479]
[1641504288496,27.66479,151.75,151.73,4.64863194]
[1641504291402,31.66479,151.75,151.69,41.61018109]
[1641504292003,31.66479,151.75,151.7,13.94539109]
[1641504292205,31.66479,151.75,151.7,20.81005946]
[1641504292806,4.0,151.75,151.7,20.81005946]
[1641504293910,4.0,151.75,151.69,13.94539109]
[1641504294513,45.61049043,151.76,151.69,13.94539109]
[1641504294713,41.61049043,151.76,151.69,13.94539109]
[1641504294913,41.61049043,151.76,151.69,19.52639109]
[1641504295113,41.61049043,151.76,151.69,23.52639109]
[1641504295315,13.94570043,151.76,151.69,23.52639109]
[1641504295618,3.23663747,151.75,151.7,15.35722798]
[1641504296715,64.9335,151.77,151.7,15.35722798]
[1641504296916,64.9335,151.77,151.72,13.94539109]
[1641504298017,3.23606483,151.76,151.71,13.94539109]
[1641504298819,64.9335,151.77,151.71,13.94539109]
[1641504299919,3.23606824,151.76,151.71,13.94539109]
[1641504300523,64.9335,151.77,151.71,13.94539109]
[1641504300721,64.9335,151.77,151.71,22.22189635]
[1641504301823,3.23624106,151.76,151.71,22.22189635]
[1641504302623,64.9335,151.77,151.71,22.22189635]
[1641504303425,3.23646115,151.76,151.71,1.41183689]
[1641504304224,64.9335,151.77,151.71,22.22107448]
[1641504305124,3.23632016,151.76,151.71,15.35722798]
[1641504305423,3.23632016,151.76,151.72,27.66479]
[1641504305825,64.9335,151.77,151.72,27.66479]
[1641504306726,13.94464091,151.78,151.72,27.66479]
[1641504306933,13.94357439,151.79,151.73,1.41183689]
[1641504307128,13.94357439,151.79,151.74,4.0]
[1641504307327,13.94357439,151.79,151.74,10.201]
[1641504307530,13.94357439,151.79,151.77,27.66479]
[1641504308028,103.54709709,151.82,151.77,27.66479]
[1641504308228,37.23179709,151.82,151.77,27.66479]
[1641504308430,13.93946697,151.83,151.77,27.66479]
[1641504309331,27.66479,151.85,151.77,27.66479]
[1641504309528,17.17256507,151.84,151.78,1.41223396]
[1641504309729,17.17256507,151.84,151.78,8.48223396]
[1641504310528,62.8102,151.86,151.79,1.41223396]
[1641504310731,76.74692359,151.86,151.79,15.35762505]
[1641504310931,76.74692359,151.86,151.78,6.86349462]
[1641504311129,85.91092359,151.86,151.71,55.95772458]
[1641504311330,4.0,151.83,151.71,55.95772458]
[1641504311532,4.0,151.75,151.71,55.95772458]
[1641504311731,9.656,151.75,151.71,55.95772458]
[1641504311931,4.0,151.74,151.72,1.41211445]
[1641504312131,10.58783227,151.73,151.66,18.07066936]
[1641504312332,4.0,151.69,151.66,18.07066936]
[1641504312536,4.0,151.67,151.66,17.15066936]
[1641504312932,4.0,151.67,151.6,93.26287429]
[1641504313134,4.0,151.61,151.6,93.26287429]
[1641504313332,4.48,151.61,151.6,93.26287429]
[1641504313533,36.14479,151.61,151.6,93.26287429]
[1641504313732,36.14479,151.61,151.53,26.8866413]
[1641504313934,4.0,151.6,151.53,26.8866413]
[1641504314133,2.1315565,151.6,151.55,1.8684435]
[1641504314333,2.1315565,151.6,151.53,26.8866413]
[1641504314533,2.1315565,151.58,151.53,26.8866413]
[1641504314733,32.14479,151.61,151.53,26.8866413]
[1641504315135,2.1315565,151.6,151.52,1.8684435]
[1641504315436,32.14479,151.61,151.52,1.8684435]
[1641504315735,2.1315565,151.6,151.52,1.8684435]
[1641504315936,34.2763465,151.61,151.52,1.8684435]
[1641504316239,32.14479,151.61,151.53,1.8684435]
[1641504317339,34.2763465,151.61,151.53,1.8684435]
[1641504317539,27.66479,151.61,151.56,1.8684435]
[1641504317739,27.66479,151.63,151.6,1.8684435]
[1641504317942,27.66479,151.63,151.6,4.496]
[1641504320241,27.66479,151.65,151.6,4.496]
[1641504320741,67.1348,151.66,151.6,6.3644435]
[1641504320941,2.1315565,151.68,151.6,4.496]
[1641504321142,2.1315565,151.68,151.59,1.8684435]
[1641504321343,2.1315565,151.69,151.55,27.66479]
[1641504321541,6.58891744,151.7,151.62,1.8684435]
[1641504321542,8.72047394,151.7,151.62,1.8684435]
[1641504321741,27.66479,151.69,151.62,1.8684435]
[1641504323444,27.66479,151.69,151.6,33.94679]
[1641504324343,27.66479,151.69,151.64,1.8684435]
[1641504325343,27.66479,151.69,151.6,45.15643413]
[1641504326243,27.66479,151.69,151.63,1.8684435]
[1641504327345,27.66479,151.69,151.6,38.87443413]
[1641504328746,92.63019,151.71,151.64,1.8684435]
[1641504328945,92.63019,151.71,151.64,5.313]
[1641504329546,92.63019,151.71,151.65,1.8684435]
[1641504330151,36.38482983,151.71,151.6,11.20964413]
[1641504330346,2.1315565,151.68,151.6,11.20964413]
[1641504330547,2.1315565,151.65,151.6,11.20964413]
[1641504330748,2.1315565,151.61,151.6,11.20964413]
[1641504330947,6.603,151.61,151.6,11.20964413]
[1641504331550,6.603,151.61,151.53,1.8684435]
[1641504331950,27.66479,151.58,151.53,1.8684435]
[1641504332949,27.66479,151.58,151.52,1.8684435]
[1641504334252,29.7963465,151.58,151.52,1.8684435]
[1641504334452,27.66479,151.58,151.52,1.8684435]
[1641504334853,27.66479,151.58,151.51,6.84547169]
[1641504335056,27.66479,151.58,151.52,1.8684435]
[1641504336354,27.66479,151.58,151.53,1.8684435]
[1641504336655,27.66479,151.58,151.51,6.84547169]
[1641504337056,27.66479,151.58,151.52,1.8684435]
[1641504338357,27.66479,151.58,151.54,1.8684435]
[1641504338558,27.66479,151.58,151.51,6.84547169]
[1641504339059,27.66479,151.58,151.53,1.8684435]
[1641504340262,27.66479,151.58,151.56,1.8684435]
[1641504340558,27.66479,151.58,151.54,1.8684435]
[1641504342361,27.66479,151.58,151.55,13.95826413]
[1641504343963,29.7963465,151.58,151.55,13.95826413]
[1641504344164,27.66479,151.58,151.55,13.95826413]
[1641504348468,27.66479,151.58,151.56,13.95826413]
[1641504350070,27.66479,151.58,151.55,13.95826413]
[1641504350871,27.66479,151.58,151.56,13.95826413]
[1641504351275,34.25805169,151.6,151.56,13.95826413]
[1641504351674,4.65244759,151.59,151.56,13.95826413]
[1641504352474,38.91049928,151.6,151.56,13.95826413]
[1641504353675,36.38960819,151.6,151.59,4.65264155]
[1641504353875,36.38960819,151.6,151.55,13.95826413]
[1641504354076,41.44360819,151.6,151.55,13.95826413]
[1641504354476,3.24944771,151.59,151.54,13.95826413]
[1641504354879,5.38100421,151.59,151.54,13.95826413]
[1641504355080,3.24944771,151.59,151.54,13.95826413]
[1641504355278,10.21400421,151.59,151.54,13.95826413]
[1641504355480,10.21400421,151.59,151.54,15.36223101]
[1641504355880,8.08244771,151.59,151.54,15.36223101]
[1641504356081,4.833,151.59,151.54,15.36223101]
[1641504356881,6.9645565,151.59,151.54,15.36223101]
[1641504357082,4.833,151.59,151.55,1.8684435]
[1641504357283,36.38960819,151.6,151.54,15.36223101]
[1641504357682,36.38960819,151.6,151.56,1.40396688]
[1641504358483,27.66479,151.6,151.56,1.40396688]
[1641504358783,3.24943923,151.59,151.54,17.23067451]
[1641504359385,27.66479,151.6,151.54,17.23067451]
[1641504359582,27.66479,151.6,151.56,13.95826413]
[1641504360084,29.7963465,151.6,151.56,13.95826413]
[1641504360582,57.4611365,151.6,151.56,13.95826413]
[1641504360982,57.4611365,151.6,151.55,15.36223101]
[1641504361182,63.1271365,151.6,151.55,15.36223101]
[1641504361386,2.1315565,151.58,151.55,15.36223101]
[1641504361582,2.1315565,151.56,151.55,15.36223101]
[1641504361782,5.822,151.56,151.55,15.36223101]
[1641504362383,7.9535565,151.56,151.55,15.36223101]
[1641504362584,7.9535565,151.56,151.53,1.8684435]
[1641504362783,5.822,151.56,151.54,1.40345969]
[1641504362984,34.25935608,151.57,151.54,1.40345969]
[1641504363183,27.66479,151.57,151.54,1.40345969]
[1641504367089,27.66479,151.57,151.54,3.27190319]
[1641504367989,27.66479,151.57,151.54,1.8684435]
[1641504369789,27.66479,151.57,151.51,10.84547169]
[1641504370697,27.66479,151.57,151.54,1.8684435]
[1641504371698,27.66479,151.57,151.51,6.84547169]
[1641504372298,27.66479,151.57,151.54,1.8684435]
[1641504373100,27.66479,151.57,151.51,6.84547169]
[1641504373299,27.66479,151.57,151.54,1.8684435]
[1641504374101,20.21965507,151.57,151.54,1.8684435]
[1641504374300,20.21965507,151.57,151.51,6.84547169]
[1641504374501,73.86657905,151.59,151.51,6.84547169]
[1641504374702,73.86657905,151.59,151.54,1.8684435]
[1641504377204,73.86657905,151.59,151.51,6.84547169]
[1641504377404,73.86657905,151.59,151.55,1.8684435]
[1641504380006,73.86657905,151.59,151.51,6.84547169]
[1641504381210,101.53136905,151.59,151.55,1.8684435]
[1641504382113,101.53136905,151.59,151.51,6.84547169]
[1641504382311,101.53136905,151.59,151.54,1.8684435]
[1641504382512,101.53136905,151.59,151.51,6.84547169]
[1641504382711,94.93789,151.59,151.51,6.84547169]
[1641504382912,94.93789,151.59,151.54,1.8684435]
[1641504383111,94.93789,151.59,151.54,6.34]
[1641504383312,27.66479,151.59,151.54,6.34]
[1641504383715,27.66479,151.61,151.54,6.34]
[1641504383911,27.66479,151.61,151.56,1.8684435]
[1641504384311,27.66479,151.61,151.54,6.34]
[1641504384511,6.59195781,151.63,151.58,1.8684435]
[1641504384713,37.23179709,151.66,151.58,4.384]
[1641504384911,37.23179709,151.66,151.65,1.8684435]
[1641504385112,37.23179709,151.66,151.65,7.2854435]
[1641504385313,37.23179709,151.68,151.65,7.2854435]
[1641504386114,37.23179709,151.68,151.61,27.66479]
[1641504386516,18.3478409,151.69,151.64,1.8684435]
[1641504387516,18.3478409,151.69,151.61,27.66479]
[1641504387716,18.3478409,151.69,151.61,29.5332335]
[1641504388419,2.1315565,151.68,151.61,29.5332335]
[1641504388616,2.1315565,151.68,151.61,27.66479]
[1641504388916,6.59043728,151.66,151.56,1.8684435]
[1641504389116,14.32499378,151.66,151.56,1.8684435]
[1641504389316,27.66479,151.63,151.53,27.66479]
[1641504389516,29.7963465,151.63,151.53,29.5332335]
[1641504389716,2.1315565,151.61,151.51,93.08559]
[1641504389917,2.1315565,151.59,151.51,27.66479]
[1641504390119,2.1315565,151.58,151.5,55.79879663]
[1641504390316,11.101827,151.61,151.47,1.8684435]
[1641504390317,2.1315565,151.57,151.54,6.83888694]
[1641504390518,5.298,151.57,151.54,6.83888694]
[1641504391217,5.298,151.57,151.47,13.05133233]
[1641504391417,27.66479,151.54,151.47,13.05133233]
[1641504391818,27.66479,151.54,151.47,11.18288883]
[1641504392017,27.66479,151.54,151.48,1.8684435]
[1641504393116,27.66479,151.54,151.5,13.95748355]
[1641504394117,27.66479,151.54,151.51,13.95748355]
[1641504394719,2.1315565,151.53,151.51,13.95748355]
[1641504394918,8.4625565,151.53,151.51,13.95748355]
[1641504395218,8.4625565,151.53,151.45,13.05133233]
[1641504395519,27.66479,151.51,151.45,11.18288883]
[1641504396319,27.66479,151.51,151.45,13.05133233]
[1641504396718,27.66479,151.51,151.45,1.8684435]
[1641504397419,27.66479,151.51,151.46,1.8684435]
[1641504398820,27.66479,151.51,151.42,11.18288883]
[1641504399018,29.7963465,151.51,151.44,1.8684435]
[1641504399218,27.66479,151.51,151.42,11.18288883]
[1641504399419,55.32958,151.51,151.42,11.18288883]
[1641504399620,57.4611365,151.51,151.44,1.8684435]
[1641504399821,55.32958,151.51,151.44,1.8684435]
[1641504400321,57.4611365,151.51,151.42,11.18288883]
[1641504400723,2.1315565,151.46,151.42,11.18288883]
[1641504401023,2.1315565,151.45,151.42,11.18288883]
[1641504401425,29.7963465,151.43,151.42,11.18288883]
[1641504401624,27.66479,151.43,151.36,1.8684435]
[1641504402324,29.7963465,151.43,151.35,11.18288883]
[1641504402525,29.7963465,151.43,151.33,27.66479]
[1641504402724,34.26545007,151.43,151.33,27.66479]
[1641504402925,2.1315565,151.42,151.33,29.5332335]
[1641504403125,2.1315565,151.42,151.33,27.66479]
[1641504403126,2.1315565,151.41,151.33,27.66479]
[1641504403327,2.1315565,151.41,151.33,29.5332335]
[1641504403526,2.1315565,151.41,151.34,1.39982602]
[1641504403727,9.11716273,151.42,151.34,1.39982602]
[1641504403928,9.11716273,151.42,151.36,1.8684435]
[1641504404127,3.25816273,151.42,151.36,1.8684435]
[1641504404426,34.26545007,151.43,151.34,1.39982602]
[1641504404828,34.26545007,151.43,151.36,1.8684435]
[1641504405829,34.26545007,151.43,151.34,1.39982602]
[1641504406229,2.1315565,151.42,151.34,3.26826952]
[1641504406432,34.26545007,151.43,151.38,1.8684435]
[1641504406830,34.26545007,151.43,151.39,1.8684435]
[1641504407229,34.26545007,151.43,151.39,3.26826952]
[1641504407429,27.66479,151.43,151.39,1.39982602]
[1641504407631,27.66479,151.43,151.4,1.8684435]
[1641504408232,27.66479,151.43,151.4,3.26826952]
[1641504409134,27.66479,151.43,151.41,1.39982602]
[1641504412436,27.66479,151.43,151.35,1.39982602]
[1641504412637,27.66479,151.43,151.38,1.8684435]
[1641504413336,27.66479,151.43,151.39,1.39982602]
[1641504414939,27.66479,151.43,151.37,1.8684435]
[1641504415340,27.66479,151.43,151.34,19.42073518]
[1641504417141,27.66479,151.43,151.35,1.8684435]
[1641504417541,27.66479,151.43,151.34,19.42073518]
[1641504417741,27.66479,151.43,151.34,21.28917868]
[1641504418242,29.7963465,151.43,151.34,21.28917868]
[1641504418444,34.45311924,151.43,151.35,1.39982602]
[1641504418744,2.1315565,151.42,151.35,1.39982602]
[1641504418945,8.73243442,151.42,151.35,1.39982602]
[1641504419244,11.25765066,151.42,151.35,3.26826952]
[1641504419448,11.25765066,151.42,151.38,1.8684435]
[1641504419744,11.25765066,151.42,151.35,1.39982602]
[1641504419945,11.25765066,151.42,151.39,1.39982602]
[1641504420348,11.25765066,151.42,151.39,2.602e-05]
[1641504420950,11.25765066,151.42,151.38,1.8684435]
[1641504422050,11.25765066,151.42,151.34,27.66479]
[1641504422248,11.25765066,151.42,151.36,1.8684435]
[1641504422649,11.25765066,151.42,151.35,6.83802033]
[1641504422848,17.60065066,151.42,151.35,6.83802033]
[1641504423750,17.60065066,151.42,151.35,8.70646383]
[1641504423751,4.65677274,151.4,151.35,8.70646383]
[1641504424151,4.65677274,151.4,151.35,6.83802033]
[1641504424449,12.94387792,151.42,151.35,8.70646383]
[1641504424450,4.65677274,151.41,151.35,8.70646383]
[1641504425250,4.65677274,151.41,151.37,13.97412256]
[1641504426250,4.65677274,151.4,151.37,13.97412256]
[1641504427053,12.94387792,151.42,151.37,13.97412256]
[1641504427054,4.65677274,151.41,151.37,13.97412256]
[1641504428757,4.65677274,151.41,151.38,13.97412256]
[1641504433665,4.65677274,151.41,151.37,13.97412256]
[1641504435367,34.26566792,151.42,151.37,13.97412256]
[1641504436067,34.26566792,151.42,151.41,4.65785378]
[1641504436367,34.26566792,151.42,151.37,13.97412256]
[1641504436769,2.1315565,151.41,151.37,13.97412256]
[1641504436966,2.1315565,151.4,151.32,18.02090916]
[1641504437167,9.0505565,151.4,151.32,18.02090916]
[1641504437367,9.0505565,151.4,151.32,19.88935266]
[1641504437568,2.1315565,151.35,151.32,18.02090916]
[1641504437868,27.66479,151.33,151.32,1e-08]
[1641504438467,27.66479,151.33,151.28,55.79879663]
[1641504438667,36.40223896,151.33,151.28,55.79879663]
[1641504439569,34.27068246,151.33,151.24,1.8684435]
[1641504439768,36.40223896,151.33,151.24,1.8684435]
[1641504440068,36.40223896,151.33,151.22,62.1916]
[1641504440270,36.40223896,151.33,151.24,1.8684435]
[1641504440472,2.1315565,151.3,151.22,1.8684435]
[1641504440672,2.1315565,151.29,151.22,1.8684435]
[1641504440869,9.0395565,151.3,151.22,1.8684435]
[1641504441369,2.1315565,151.29,151.22,1.8684435]
[1641504441672,2.1315565,151.29,151.18,1.8684435]
[1641504441869,27.66479,151.26,151.18,73.33165298]
[1641504442073,24.86848388,151.26,151.18,73.33165298]
[1641504442271,27.00004038,151.26,151.18,71.46320948]
[1641504442469,24.86848388,151.26,151.21,1.8684435]
[1641504442669,24.86848388,151.26,151.23,1.8684435]
[1641504443671,24.86848388,151.26,151.17,71.46320948]
[1641504444069,24.86848388,151.26,151.24,1.8684435]
[1641504444269,24.86848388,151.26,151.17,71.46320948]
[1641504444469,24.86848388,151.26,151.24,1.8684435]
[1641504444670,24.86848388,151.26,151.25,1.8684435]
[1641504444671,20.20648388,151.26,151.25,1.8684435]
[1641504444869,20.20648388,151.26,151.19,4.0]
[1641504445171,34.27199185,151.28,151.2,1.8684435]
[1641504445368,34.27199185,151.28,151.21,1.8684435]
[1641504445570,34.27199185,151.28,151.18,4.0]
[1641504445969,27.66479,151.28,151.27,1.8684435]
[1641504446169,27.66479,151.31,151.26,5.603]
[1641504446571,27.66479,151.31,151.26,7.4714435]
[1641504446771,27.66479,151.31,151.28,1.8684435]
[1641504446971,27.66479,151.31,151.26,5.603]
[1641504447371,27.66479,151.31,151.22,4.0]
[1641504447571,27.66479,151.31,151.23,4.0]
[1641504447771,27.66479,151.31,151.26,4.0]
[1641504447972,27.66479,151.31,151.28,1.8684435]
[1641504448171,27.66479,151.31,151.24,27.66479]
[1641504448872,33.30579,151.31,151.25,1.8684435]
[1641504449073,33.30579,151.31,151.24,27.66479]
[1641504449473,33.30579,151.31,151.27,1.8684435]
[1641504449873,33.30579,151.31,151.24,27.66479]
[1641504450073,33.30579,151.31,151.28,1.8684435]
[1641504450273,33.30579,151.31,151.24,27.66479]
[1641504450773,33.30579,151.31,151.29,1.8684435]
[1641504451075,33.30579,151.31,151.24,27.66479]
[1641504452075,5.641,151.31,151.27,1.8684435]
[1641504452277,66.9146,151.33,151.27,1.8684435]
[1641504452575,66.9146,151.33,151.24,27.66479]
[1641504453479,75.65117632,151.33,151.24,27.66479]
[1641504454278,2.1315565,151.32,151.24,27.66479]
[1641504454478,73.51961982,151.33,151.24,1.8684435]
[1641504454677,75.65117632,151.33,151.25,1.8684435]
[1641504454878,73.51961982,151.33,151.28,1.8684435]
[1641504455278,73.51961982,151.33,151.24,4.0]
[1641504455480,73.51961982,151.33,151.28,1.8684435]
[1641504455678,6.60501982,151.33,151.28,1.8684435]
[1641504455883,6.60501982,151.33,151.29,1.8684435]
[1641504456581,6.60501982,151.33,151.25,27.66479]
[1641504456980,6.60501982,151.33,151.29,1.8684435]
[1641504457984,6.60501982,151.33,151.3,1.8684435]
[1641504458183,27.66479,151.35,151.32,1.8684435]
[1641504458383,37.23179709,151.36,151.32,6.079]
[1641504458785,37.23179709,151.36,151.34,4.0]
[1641504458984,37.23179709,151.36,151.35,1.8684435]
[1641504460089,37.23179709,151.41,151.35,1.8684435]
[1641504460286,37.23179709,151.41,151.33,31.66479]
[1641504460585,41.82879709,151.41,151.33,31.66479]
[1641504460886,41.82879709,151.41,151.39,1.8684435]
[1641504461088,58.35816262,151.41,151.39,1.8684435]
[1641504461588,58.35816262,151.41,151.4,1.8684435]
[1641504461989,53.76116262,151.41,151.4,1.8684435]
[1641504462188,12.86882853,151.41,151.4,1.8684435]
[1641504463193,12.86882853,151.43,151.4,1.8684435]
[1641504463392,12.86882853,151.43,151.37,27.66479]
[1641504463592,12.86882853,151.43,151.4,1.8684435]
[1641504464594,12.86882853,151.43,151.37,27.66479]
[1641504465196,12.86882853,151.43,151.38,0.99868084]
[1641504465796,12.86882853,151.43,151.41,1.8684435]
[1641504466598,12.86882853,151.43,151.38,0.99868084]
[1641504467099,12.86882853,151.46,151.37,59.32958]
[1641504467300,19.77682853,151.46,151.37,59.32958]
[1641504467501,19.77682853,151.46,151.37,55.32958]
[1641504467800,19.77682853,151.46,151.4,1.8684435]
[1641504468504,13.97151038,151.43,151.38,0.9987915]
[1641504469004,13.97151038,151.43,151.42,1.8684435]
[1641504470806,13.97151038,151.44,151.42,1.8684435]
[1641504471206,13.97151038,151.44,151.37,13.97151038]
[1641504472410,13.97151038,151.43,151.39,27.66479]
[1641504473311,13.97151038,151.43,151.4,0.99877694]
[1641504473509,13.97151038,151.43,151.4,2.86722044]